fUST/lending_fUST_20260102
["ID","MTS","AMOUNT","RATE_DAILY","PERIOD"]
[400299994,1767313832082,-150.0,0.00011563,2]
[400299995,1767313832091,-248.39,0.000119,2]
[400299996,1767313832100,-191.24466715,0.00011913,2]
[400299997,1767313832230,-150.0,0.00012089,2]
[400299998,1767313832240,-248.39,0.000123,2]
[400299999,1767313832249,-150.0,0.000127,2]
[400300000,1767313832258,-248.39,0.000127,2]
[400300001,1767313832268,-4109.12547633,0.00013039,2]
[400300002,1767313832277,-2479.91728598,0.00013066,2]
[400300003,1767313832286,-300.0,0.00013069,2]
[400300004,1767313832295,-298.0,0.00013069,2]
[400300005,1767313832304,-1200.0,0.00013069,2]
[400300006,1767313832313,-1191.04465512,0.0001307,2]
[400300007,1767313832322,-1191.0446551,0.00013087,2]
[400300008,1767313832332,-248.39,0.000131,2]
[400300009,1767313832342,-1191.0446551,0.00013105,2]
[400300010,1767313832352,-1191.0446551,0.00013122,2]
[400300011,1767313832361,-371.20697706,0.00013138,2]
[400300012,1767313832370,-27967.10440812,0.00013139,2]
[400300013,1767313832381,-31015.16984577,0.00013139,2]
[400300023,1767313838062,-2714.43362457,0.00013139,2]
[400300024,1767313838074,-829.03730397,0.00013139,2]
[400300025,1767313838089,-291.300155,0.00013139,2]
[400300026,1767313838100,-832.12920319,0.00013139,2]
[400300027,1767313838111,-2694.248208,0.00013139,2]
[400300059,1767314280028,278.77,8.238e-05,2]
[400300061,1767314478949,1080.98,0.00028767,120]
[400300073,1767314693273,430.97998901,0.00026961,120]
[400300074,1767314697569,402.24798974,0.00026961,120]
[400300075,1767314699047,430.97998901,0.00026961,120]
[400300101,1767315032458,-203.68,0.0001,2]
[400300102,1767315032468,-159.80873836,0.0001005,2]
[400300103,1767315032477,-203.68,0.000104,2]
[400300104,1767315032487,-203.68,0.000108,2]
[400300105,1767315032496,-150.0,0.00010876,2]
[400300106,1767315032509,-203.68,0.000111,2]
[400300107,1767315032518,-150.0,0.00011394,2]
[400300108,1767315032528,-203.68,0.000115,2]
[400300109,1767315032537,-203.68,0.000119,2]
[400300110,1767315032547,-150.0,0.00011911,2]
[400300111,1767315032556,-188.57431127,0.0001205,2]
[400300112,1767315032566,-302.0,0.000123,2]
[400300113,1767315032575,-203.68,0.000123,2]
[400300114,1767315032584,-150.0,0.00012429,2]
[400300115,1767315032593,-203.68,0.000127,2]
[400300116,1767315032603,-183.35353781,0.0001272,2]
[400300117,1767315032612,-2479.91728598,0.00012842,2]
[400300118,1767315032622,-186.29158513,0.00012937,2]
[400300119,1767315032632,-821.14092455,0.00012937,2]
[400300120,1767315032642,-821.14092455,0.00012937,2]
[400300121,1767315032651,-393.10113605,0.00012937,2]
[400300122,1767315032661,-821.14092455,0.00012937,2]
[400300123,1767315032671,-500.0,0.00012937,2]
[400300124,1767315032681,-821.14092455,0.00012937,2]
[400300125,1767315032690,-821.14092455,0.00012937,2]
[400300126,1767315032700,-821.14092455,0.00012937,2]
[400300127,1767315032709,-821.14092455,0.00012937,2]
[400300128,1767315032719,-821.14092455,0.00012937,2]
[400300129,1767315032728,-821.14092455,0.00012937,2]
[400300130,1767315032737,-821.14092455,0.00012937,2]
[400300131,1767315032747,-352.73774452,0.00012937,2]
[400300132,1767315032756,-821.14092455,0.00012937,2]
[400300133,1767315032766,-500.0,0.00012937,2]
[400300134,1767315032775,-500.0,0.00012937,2]
[400300135,1767315032784,-821.14092455,0.00012937,2]
[400300136,1767315032794,-821.14092455,0.00012937,2]
[400300137,1767315032803,-821.14092455,0.00012937,2]
[400300138,1767315032975,-821.14092455,0.00012937,2]
[400300139,1767315032994,-1191.0446551,0.00012938,2]
[400300140,1767315033004,-14009.08242119,0.00012938,2]
[400300141,1767315033017,-352.0,0.00012938,2]
[400300142,1767315033078,-821.14092455,0.00012937,2]
[400300143,1767315033088,-500.0,0.00012937,2]
[400300144,1767315033097,-500.0,0.00012937,2]
[400300145,1767315033107,-500.0,0.00012937,2]
[400300146,1767315033117,-4624.92057854,0.00012938,2]
[400300177,1767315038319,-821.14092455,0.00012937,2]
[400300178,1767315038329,-500.0,0.00012937,2]
[400300179,1767315038339,-500.0,0.00012937,2]
[400300180,1767315038349,-342.71578019,0.00012937,2]
[400300181,1767315038358,-500.0,0.00012937,2]
[400300182,1767315038368,-821.14092455,0.00012937,2]
[400300183,1767315038377,-226.73631449,0.00012937,2]
[400300184,1767315038386,-821.14092455,0.00012937,2]
[400300185,1767315038396,-500.0,0.00012937,2]
[400300186,1767315038406,-821.14092455,0.00012937,2]
[400300187,1767315038415,-356.73520528,0.00012937,2]
[400300188,1767315038425,-821.14092455,0.00012937,2]
[400300189,1767315038434,-500.0,0.00012937,2]
[400300190,1767315038444,-500.0,0.00012937,2]
[400300191,1767315038453,-821.14092455,0.00012937,2]
[400300192,1767315038462,-500.0,0.00012937,2]
[400300193,1767315038472,-821.14092455,0.00012937,2]
[400300194,1767315038481,-500.0,0.00012937,2]
[400300195,1767315038491,-37635.36162045,0.00012938,2]
[400300196,1767315038502,-12942.11470087,0.00012938,2]
[400300197,1767315038514,-934.49182444,0.00012938,2]
[400300198,1767315038525,-2892.56291802,0.00012938,2]
[400300213,1767315040429,-3624.30585884,0.00012938,2]
[400300214,1767315040483,-573.128812,0.00012938,2]
[400300220,1767315045450,-152.84107737,0.00012938,2]
[400300221,1767315045460,-13574.89215235,0.00012938,2]
[400300229,1767315046397,-55558.77059603,0.00012938,2]
[400300230,1767315046408,-10170.42,0.00012938,2]
[400300233,1767315367691,158.0,0.000287,120]
[400300234,1767315379969,159.57525944,0.000287,120]
[400300261,1767315930913,172.3919956,0.00027209,120]
[400300263,1767315964970,10000.0,0.00028767,120]
[400300264,1767315974058,10000.0,0.00028767,120]
[400300265,1767315986733,10000.0,0.00028767,120]
[400300266,1767315997374,10000.0,0.00028767,120]
[400300267,1767316043121,-394.99699205,0.0001,2]
[400300301,1767316232623,-560.0,0.0001,2]
[400300302,1767316232633,-171.09,0.0001,2]
[400300303,1767316232642,-56.80977839,0.00010132,2]
[400300304,1767316232653,-93.19022161,0.00010132,2]
[400300305,1767316232663,-171.09,0.000104,2]
[400300306,1767316232673,-171.09,0.000108,2]
[400300307,1767316232682,-150.0,0.00011,2]
[400300308,1767316232693,-171.09,0.000111,2]
[400300309,1767316232703,-171.09,0.000115,2]
[400300310,1767316232713,-150.0,0.00011524,2]
[400300311,1767316232722,-171.09,0.000119,2]
[400300312,1767316232731,-150.0,0.00012047,2]
[400300313,1767316232740,-25.01155943,0.00012132,2]
[400300314,1767316232751,-151.98844057,0.00012132,2]
[400300315,1767316232760,-171.09,0.000123,2]
[400300316,1767316232769,-150.0,0.00012571,2]
[400300317,1767316232779,-90.84341296,0.000127,2]
[400300318,1767316232819,-80.24658704,0.000127,2]
[400300319,1767316232829,-2479.91728598,0.00012722,2]
[400300320,1767316232839,-948.5107837,0.00012869,2]
[400300321,1767316232848,-948.5107837,0.00012869,2]
[400300322,1767316232858,-500.0,0.00012869,2]
[400300323,1767316232867,-948.5107837,0.00012869,2]
[400300324,1767316232876,-343.02121568,0.00012869,2]
[400300325,1767316232886,-948.5107837,0.00012869,2]
[400300326,1767316232896,-500.0,0.00012869,2]
[400300327,1767316232905,-258.66972551,0.00012869,2]
[400300338,1767316238435,-689.84105819,0.00012869,2]
[400300339,1767316238446,-549.19117839,0.00012869,2]
[400300340,1767316238456,-948.5107837,0.00012869,2]
[400300341,1767316238468,-948.5107837,0.00012869,2]
[400300342,1767316238478,-948.5107837,0.00012869,2]
[400300343,1767316238487,-948.5107837,0.00012869,2]
[400300344,1767316238497,-948.5107837,0.00012869,2]
[400300345,1767316238506,-948.5107837,0.00012869,2]
[400300346,1767316238516,-500.0,0.00012869,2]
[400300347,1767316238525,-171.42999674,0.00012869,2]
[400300348,1767316238534,-500.0,0.00012869,2]
[400300349,1767316238543,-500.0,0.00012869,2]
[400300350,1767316238553,-500.0,0.00012869,2]
[400300351,1767316238566,-273.84543393,0.00012869,2]
[400300352,1767316238575,-425.71354972,0.00012869,2]
[400300353,1767316238584,-174.20934872,0.00012869,2]
[400300354,1767316238593,-485.92827553,0.00012869,2]
[400300355,1767316238603,-500.0,0.00012869,2]
[400300356,1767316238612,-948.5107837,0.00012869,2]
[400300357,1767316238622,-948.5107837,0.00012869,2]
[400300358,1767316238631,-948.5107837,0.00012869,2]
[400300359,1767316238641,-948.5107837,0.00012869,2]
[400300360,1767316238650,-13492.12346277,0.0001287,2]
[400300361,1767316238662,-41452.96984318,0.0001287,2]
[400300362,1767316238674,-5610.15874055,0.0001287,2]
[400300363,1767316238685,-16844.9999999,0.0001287,2]
[400300364,1767316238697,-822.42279838,0.0001287,2]
[400300365,1767316238710,-1107.56081372,0.0001287,2]
[400300366,1767316238721,-1049.11911392,0.0001287,2]
[400300367,1767316238732,-890.15205145,0.0001287,2]
[400300368,1767316238743,-281.00478041,0.0001287,2]
[400300369,1767316238755,-336.89581879,0.0001287,2]
[400300370,1767316238766,-2477.74752223,0.0001287,2]
[400300371,1767316238777,-338.84055212,0.0001287,2]
[400300383,1767316244416,-26359.08661418,0.0001287,2]
[400300384,1767316245070,-436.95228894,0.0001287,2]
[400300385,1767316245081,-27478.16575198,0.0001287,2]
[400300386,1767316245094,-2099.0,0.0001287,2]
[400300391,1767316246483,-851.78723781,0.0001287,2]
[400300392,1767316246496,-35654.80395575,0.0001287,2]
[400300393,1767316246508,-1434.71368843,0.0001287,2]
[400300394,1767316246539,-305.00000001,0.0001287,2]
[400300408,1767317232107,-418.40751092,0.0001,2]
[400300462,1767317432562,-509.82950955,0.0001,2]
[400300473,1767317432671,-50.17049045,0.0001,2]
[400300475,1767317432681,-152.89,0.0001,2]
[400300477,1767317432690,-150.0,0.000101,2]
[400300479,1767317432699,-25.41627367,0.000104,2]
[400300482,1767317432710,-127.47372633,0.000104,2]
[400300484,1767317432720,-152.89,0.000108,2]
[400300486,1767317432729,-150.0,0.00010953,2]
[400300488,1767317432738,-152.89,0.000112,2]
[400300490,1767317432748,-150.0,0.00011465,2]
[400300492,1767317432757,-183.44516876,0.00011582,2]
[400300494,1767317432766,-152.89,0.000116,2]
[400300496,1767317432776,-150.0,0.00011906,2]
[400300498,1767317432785,-152.89,0.00012,2]
[400300500,1767317432795,-177.0,0.000121,2]
[400300502,1767317432804,-152.89,0.000124,2]
[400300504,1767317432813,-150.0,0.00012424,2]
[400300505,1767317432823,-2480.34481955,0.00012502,2]
[400300507,1767317432832,-154.62763968,0.00012764,2]
[400300509,1767317432841,-1200.0,0.00012833,2]
[400300510,1767317432850,-278.0,0.00012834,2]
[400300511,1767317432859,-300.0,0.00012834,2]
[400300512,1767317432868,-300.0,0.00012834,2]
[400300513,1767317432877,-300.0,0.00012834,2]
[400300515,1767317432886,-500.0,0.00012835,2]
[400300517,1767317432895,-500.0,0.00012835,2]
[400300518,1767317432904,-500.0,0.00012835,2]
[400300519,1767317432913,-163.3440736,0.00012835,2]
[400300520,1767317432922,-547.28313562,0.00012835,2]
[400300521,1767317432931,-267.8631127,0.00012835,2]
[400300522,1767317432940,-500.0,0.00012835,2]
[400300523,1767317432950,-240.11485098,0.00012836,2]
[400300524,1767317432959,-500.0,0.00012836,2]
[400300525,1767317432968,-584.43382487,0.00012836,2]
[400300526,1767317432977,-976.36532535,0.00012836,2]
[400300527,1767317432987,-976.36532535,0.00012836,2]
[400300528,1767317432996,-976.36532535,0.00012836,2]
[400300529,1767317433005,-976.36532535,0.00012836,2]
[400300530,1767317433014,-976.36532535,0.00012836,2]
[400300531,1767317433023,-976.36532535,0.00012836,2]
[400300532,1767317433037,-976.36532535,0.00012836,2]
[400300533,1767317433047,-976.36532535,0.00012836,2]
[400300534,1767317433057,-976.36532535,0.00012836,2]
[400300535,1767317433066,-976.36532535,0.00012836,2]
[400300536,1767317433075,-976.36532535,0.00012836,2]
[400300537,1767317433085,-976.36532535,0.00012836,2]
[400300538,1767317433094,-976.36532535,0.00012836,2]
[400300539,1767317433104,-976.36532535,0.00012836,2]
[400300540,1767317433114,-976.36532535,0.00012836,2]
[400300541,1767317433123,-976.36532535,0.00012836,2]
[400300542,1767317433133,-976.36532535,0.00012836,2]
[400300543,1767317433142,-976.36532535,0.00012836,2]
[400300544,1767317433152,-976.36532535,0.00012836,2]
[400300545,1767317433161,-1025.18359161,0.00012836,2]
[400300546,1767317433171,-1025.18359161,0.00012836,2]
[400300547,1767317433180,-1025.18359161,0.00012836,2]
[400300548,1767317433192,-1025.18359161,0.00012836,2]
[400300549,1767317433201,-1025.18359161,0.00012836,2]
[400300550,1767317433211,-1025.18359161,0.00012836,2]
[400300551,1767317433221,-1025.18359161,0.00012836,2]
[400300552,1767317433231,-1025.18359161,0.00012836,2]
[400300553,1767317433240,-169.08257248,0.00012836,2]
[400300554,1767317433249,-17463.47094987,0.00012837,2]
[400300568,1767317438797,-4614.9390663,0.00012837,2]
[400300571,1767317441018,-13254.6,0.00012837,2]
[400300572,1767317441029,-999.3076169,0.00012837,2]
[400300610,1767317446859,-5831.58398342,0.00012837,2]
[400300864,1767318631665,-152.89,0.0001,2]
[400300866,1767318631674,-150.0,0.00010031,2]
[400300868,1767318631683,-152.89,0.000105,2]
[400300870,1767318631696,-152.89,0.00011,2]
[400300872,1767318631706,-150.0,0.00011388,2]
[400300874,1767318631716,-152.89,0.000114,2]
[400300876,1767318631725,-152.89,0.000119,2]
[400300878,1767318631734,-150.0,0.00011906,2]
[400300880,1767318631743,-9.33522574,0.00011998,2]
[400300882,1767318631754,-290.66477426,0.00011998,2]
[400300883,1767318631763,-46.61815284,0.00011998,2]
[400300885,1767318631774,-253.38184716,0.00011998,2]
[400300887,1767318631783,-1200.0,0.00011998,2]
[400300889,1767318631792,-169.71816221,0.00011999,2]
[400300893,1767318631920,-500.0,0.00011999,2]
[400300894,1767318631939,-709.75378598,0.00011999,2]
[400300895,1767318631949,-262.53468378,0.00011999,2]
[400300896,1767318631959,-84.54844543,0.00011999,2]
[400300913,1767318637775,-447.57581005,0.00011999,2]
[400300914,1767318637786,-177.6295305,0.00011999,2]
[400300915,1767318637796,-709.75378598,0.00011999,2]
[400300916,1767318637805,-709.75378598,0.00011999,2]
[400300917,1767318637814,-709.75378598,0.00011999,2]
[400300918,1767318637824,-709.75378598,0.00011999,2]
[400300919,1767318637834,-709.75378598,0.00011999,2]
[400300920,1767318637845,-709.75378598,0.00011999,2]
[400300921,1767318637855,-709.75378598,0.00011999,2]
[400300922,1767318637864,-709.75378598,0.00011999,2]
[400300923,1767318637878,-709.75378598,0.00011999,2]
[400300924,1767318637887,-709.75378598,0.00011999,2]
[400300925,1767318637897,-709.75378598,0.00011999,2]
[400300926,1767318637913,-709.75378598,0.00011999,2]
[400300927,1767318637923,-709.75378598,0.00011999,2]
[400300928,1767318637933,-709.75378598,0.00011999,2]
[400300929,1767318637943,-709.75378598,0.00011999,2]
[400300930,1767318637953,-709.75378598,0.00011999,2]
[400300931,1767318637962,-709.75378598,0.00011999,2]
[400300932,1767318637972,-709.75378598,0.00011999,2]
[400300933,1767318637982,-745.24147527,0.00011999,2]
[400300934,1767318637991,-745.24147527,0.00011999,2]
[400300935,1767318638001,-745.24147527,0.00011999,2]
[400300936,1767318638011,-745.24147527,0.00011999,2]
[400300937,1767318638020,-745.24147527,0.00011999,2]
[400300938,1767318638031,-745.24147527,0.00011999,2]
[400300939,1767318638041,-745.24147527,0.00011999,2]
[400300940,1767318638051,-745.24147527,0.00011999,2]
[400300941,1767318638061,-8896.23623725,0.00012,2]
[400300942,1767318638072,-1649.42707292,0.00012,2]
[400300956,1767318639979,-150.0,0.00011419,2]
[400300957,1767318639988,-13088.25,0.00012,2]
[400300958,1767318639999,-837.44113459,0.00012,2]
[400300965,1767318644049,-795.36139042,0.00012,2]
[400300966,1767318644061,-17688.11290013,0.00012,2]
[400300967,1767318644834,-5396.0609,0.00012,2]
[400300973,1767318645887,-493.33333333,0.00012,2]
[400301101,1767319522204,3133.20277617,9.76e-05,2]
[400301102,1767319522232,1866.79722383,9.76e-05,2]
[400301106,1767319631097,-150.0,9.95e-05,2]
[400301107,1767319631119,-247.33804393,0.00011772,2]
[400301141,1767319831824,-153.06,0.0001,2]
[400301143,1767319831834,-150.0,0.0001025,2]
[400301145,1767319831843,-153.06,0.000105,2]
[400301147,1767319831851,-153.06,0.000111,2]
[400301149,1767319831861,-2480.34481955,0.00011518,2]
[400301151,1767319831870,-582.0,0.00011518,2]
[400301153,1767319831879,-153.06,0.000116,2]
[400301155,1767319831889,-5026.41518045,0.00011899,2]
[400301312,1767319837869,-2020.63939744,0.00011899,2]
[400301319,1767319837919,-828513.10686484,0.00011899,2]
[400301325,1767319837973,-3347.19808484,0.00011899,2]
[400301340,1767319840165,-414.03113226,0.00011899,2]
[400301358,1767319845570,-104352.66515499,0.00011899,2]
[400301359,1767319845584,-39186.82330109,0.00011899,2]
[400301360,1767319845600,-2439.68728602,0.00011899,2]
[400301368,1767319846140,-4411.17,0.00011899,2]
[400301416,1767320851121,-166.07,0.0001,2]
[400301417,1767320851141,-150.0,0.00010662,2]
[400301418,1767320851159,-100.23056422,0.00011059,10]
[400301475,1767321032000,-153.45,0.0001,2]
[400301476,1767321032009,-153.45,0.000106,2]
[400301477,1767321032019,-153.45,0.000112,2]
[400301478,1767321032029,-147.16500014,0.0001171,2]
[400301479,1767321032040,-445.89226248,0.0001171,2]
[400301480,1767321032051,-1887.28755693,0.0001171,2]
[400301481,1767321032060,-500.0,0.00011758,2]
[400301482,1767321032070,-156.0,0.000118,2]
[400301483,1767321032079,-161.02276195,0.000118,2]
[400301484,1767321032088,-1000.0,0.000118,2]
[400301485,1767321032097,-1000.0,0.000118,3]
[400301486,1767321032113,-153.45,0.000118,2]
[400301487,1767321032123,-346.0,0.00011899,2]
[400301488,1767321032132,-195.572523,0.00011902,2]
[400301489,1767321032142,-281.5618368,0.00011903,2]
[400301490,1767321032151,-300.0,0.00011998,2]
[400301491,1767321032160,-164.0,0.00011998,2]
[400301492,1767321032169,-239.38734157,0.00011999,2]
[400301493,1767321032178,-162.03504368,0.00011999,2]
[400301507,1767321038203,-514.60656766,0.00011999,2]
[400301509,1767321038213,-500.0,0.00011999,2]
[400301511,1767321038222,-514.60656766,0.00011999,2]
[400301513,1767321038232,-514.60656766,0.00011999,2]
[400301515,1767321038240,-183.77427865,0.00011999,2]
[400301517,1767321038249,-514.60656766,0.00011999,2]
[400301519,1767321038258,-514.60656766,0.00011999,2]
[400301520,1767321038268,-514.60656766,0.00011999,2]
[400301522,1767321038278,-514.60656766,0.00011999,2]
[400301524,1767321038287,-514.60656766,0.00011999,2]
[400301526,1767321038296,-514.60656766,0.00011999,2]
[400301528,1767321038305,-514.60656766,0.00011999,2]
[400301530,1767321038315,-514.60656766,0.00011999,2]
[400301532,1767321038324,-514.60656766,0.00011999,2]
[400301534,1767321038333,-514.60656766,0.00011999,2]
[400301536,1767321038342,-514.60656766,0.00011999,2]
[400301537,1767321038351,-514.60656766,0.00011999,2]
[400301539,1767321038361,-514.60656766,0.00011999,2]
[400301541,1767321038370,-514.60656766,0.00011999,2]
[400301543,1767321038380,-500.0,0.00011999,2]
[400301545,1767321038390,-546.38486595,0.00011999,2]
[400301547,1767321038399,-500.0,0.00011999,2]
[400301549,1767321038408,-378.11894108,0.00011999,2]
[400301551,1767321038426,-72683.93153243,0.00012,2]
[400301598,1767321045074,-1051.27549893,0.00012,2]
[400301599,1767321045084,-2230.315306,0.00012214,2]
[400301600,1767321045094,-30000.0,0.00012214,2]
[400301601,1767321045103,-461.67526834,0.00012214,2]
[400301602,1767321045113,-300.0,0.00012239,2]
[400301603,1767321045123,-300.0,0.00012239,2]
[400301604,1767321045132,-300.0,0.00012239,2]
[400301605,1767321045142,-300.0,0.00012239,2]
[400301606,1767321045151,-300.0,0.00012239,2]
[400301607,1767321045160,-300.0,0.00012239,2]
[400301608,1767321045169,-300.0,0.00012239,2]
[400301609,1767321045179,-300.0,0.00012239,2]
[400301610,1767321045188,-300.0,0.00012239,2]
[400301611,1767321045198,-300.0,0.00012239,2]
[400301612,1767321045208,-300.0,0.00012239,2]
[400301613,1767321045217,-300.0,0.00012239,2]
[400301614,1767321045227,-300.0,0.00012239,2]
[400301615,1767321045236,-300.0,0.00012239,2]
[400301616,1767321045245,-300.0,0.00012239,2]
[400301617,1767321045255,-600.0,0.00012239,2]
[400301618,1767321045264,-153.45,0.000123,2]
[400301619,1767321045274,-174.33,0.00012329,2]
[400301620,1767321045284,-871.65,0.00012329,2]
[400301621,1767321045293,-177.0,0.00012662,2]
[400301622,1767321045303,-256.77323963,0.00012705,2]
[400301627,1767321046360,-5631.22676037,0.00012705,2]
[400301628,1767321046370,-2312.83697232,0.00012762,2]
[400301629,1767321046379,-31110.0,0.00012762,2]
[400301630,1767321046389,-478.75725327,0.00012762,2]
[400301631,1767321046398,-5888.0,0.00012796,2]
[400301632,1767321046409,-1000.0,0.00012837,2]
[400301633,1767321046418,-1003.96965936,0.00012837,2]
[400301634,1767321046428,-151.0,0.00012837,2]
[400301635,1767321046438,-151.0,0.00012837,2]
[400301636,1767321046448,-151.0,0.00012837,2]
[400301637,1767321046457,-151.0,0.00012837,2]
[400301638,1767321046466,-151.0,0.00012837,2]
[400301639,1767321046475,-151.0,0.00012837,2]
[400301640,1767321046485,-151.0,0.00012837,2]
[400301641,1767321046494,-151.0,0.00012837,2]
[400301642,1767321046506,-151.0,0.00012837,2]
[400301643,1767321046515,-151.0,0.00012837,2]
[400301644,1767321046524,-151.0,0.00012837,2]
[400301645,1767321046534,-151.0,0.00012837,2]
[400301646,1767321046543,-151.0,0.00012837,2]
[400301647,1767321046552,-151.0,0.00012837,2]
[400301648,1767321046561,-151.0,0.00012837,2]
[400301649,1767321046570,-205.5207536,0.00012837,2]
[400301650,1767321046580,-1200.38646137,0.0001287,2]
[400301651,1767321046589,-2126.23842713,0.00012876,2]
[400301652,1767321046600,-158.0,0.000129,2]
[400301653,1767321046610,-156.0,0.000129,2]
[400301654,1767321046619,-5128.8244424,0.000129,2]
[400301655,1767321046628,-153.45,0.000129,2]
[400301656,1767321046637,-20165.79934982,0.00013043,2]
[400301677,1767321448851,203.1699607,0.00028767,120]
[400301695,1767321943520,-166.09,0.0001,2]
[400301696,1767321943541,-150.0,0.00010175,2]
[400301730,1767322232179,-154.81,0.0001,2]
[400301732,1767322232190,-150.0,0.00010464,2]
[400301734,1767322232199,-114.66480054,0.000107,2]
[400301737,1767322232225,-40.14519946,0.000107,2]
[400301739,1767322232234,-150.0,0.00010927,2]
[400301741,1767322232243,-144.47285368,0.000114,2]
[400301742,1767322232254,-10.33714632,0.000114,2]
[400301745,1767322232263,-202.63,0.00011447,2]
[400301748,1767322232273,-249.26085368,0.00011967,2]
[400301815,1767322238222,-54.67914632,0.00011967,2]
[400301817,1767322238232,-300.0,0.00011999,2]
[400301819,1767322238242,-1200.0,0.00011999,2]
[400301821,1767322238251,-152.00368215,0.00012,2]
[400301823,1767322238260,-15000.06206951,0.00012,2]
[400301825,1767322238270,-154.81,0.000121,2]
[400301827,1767322238282,-300.0,0.00012238,2]
[400301828,1767322238292,-300.0,0.00012238,2]
[400301830,1767322238302,-300.0,0.00012238,2]
[400301832,1767322238312,-300.0,0.00012238,2]
[400301834,1767322238323,-300.0,0.00012238,2]
[400301836,1767322238332,-300.0,0.00012238,2]
[400301838,1767322238342,-300.0,0.00012238,2]
[400301840,1767322238352,-300.0,0.00012238,2]
[400301842,1767322238362,-300.0,0.00012238,2]
[400301844,1767322238371,-300.0,0.00012238,2]
[400301846,1767322238381,-300.0,0.00012238,2]
[400301848,1767322238390,-300.0,0.00012238,2]
[400301850,1767322238400,-300.0,0.00012238,2]
[400301852,1767322238410,-300.0,0.00012238,2]
[400301854,1767322238420,-300.0,0.00012238,2]
[400301856,1767322238429,-600.0,0.00012238,2]
[400301857,1767322238438,-2230.315306,0.00012254,2]
[400301859,1767322238447,-15914.02333965,0.00012254,2]
[400301862,1767322238459,-6298.74026498,0.00012254,2]
[400301864,1767322238479,-500.0,0.00012254,2]
[400301866,1767322238490,-580.52519946,0.00012254,2]
[400301869,1767322238501,-2514.17811519,0.00012254,2]
[400301871,1767322238513,-4192.53308072,0.00012254,2]
[400301873,1767322238522,-405.26,0.00012383,2]
[400301875,1767322238532,-500.0,0.00012406,2]
[400301877,1767322238541,-177.0,0.00012464,2]
[400301878,1767322238551,-150.0,0.00012695,2]
[400301880,1767322238560,-160.30068518,0.00012695,2]
[400301882,1767322238570,-154.28820561,0.00012695,2]
[400301884,1767322238580,-2480.34481955,0.00012718,2]
[400301886,1767322238590,-1032.24233396,0.00012782,2]
[400301907,1767322240422,-250.0,0.00012782,2]
[400301909,1767322240434,-135.2499508,0.00012782,2]
[400301911,1767322240443,-157.45395688,0.00012789,2]
[400301912,1767322240452,-154.81,0.000128,2]
[400301914,1767322240462,-858.98974849,0.00012802,2]
[400301918,1767322240488,-1453.84722383,0.00012802,2]
[400301919,1767322240498,-1015.82374868,0.00012802,2]
[400301923,1767322240531,-467.93,0.00012802,2]
[400301991,1767322244558,-193.91668418,0.00012253,2]
[400301992,1767322244568,-193.91668418,0.00012253,2]
[400301993,1767322244578,-153.12432679,0.00012253,2]
[400301994,1767322244588,-4252.72297722,0.00012802,2]
[400301995,1767322244598,-2834.1842544,0.00012808,2]
[400301996,1767322244608,-3075.5290032,0.00012808,2]
[400301997,1767322244617,-287.54899878,0.00012832,2]
[400301998,1767322244626,-478.64199505,0.0001287,2]
[400301999,1767322244636,-500.0,0.0001287,2]
[400302000,1767322244645,-328.1743482,0.0001287,2]
[400302001,1767322244654,-500.0,0.0001287,2]
[400302002,1767322244663,-500.0,0.0001287,2]
[400302003,1767322244673,-500.0,0.0001287,2]
[400302004,1767322244682,-500.0,0.0001287,2]
[400302005,1767322244692,-500.0,0.0001287,2]
[400302006,1767322244701,-500.0,0.0001287,2]
[400302007,1767322244711,-500.0,0.0001287,2]
[400302008,1767322244720,-500.0,0.0001287,2]